[Event "Early-Titled-Tuesday-Blitz-November-28-2023"]
[Site "Chess.com"]
[Date "2023.11.28"]
[Round "6"]
[White "FunnyDuck66"]
[Black "vi_pranav"]
[Result "1-0"]
[WhiteElo "2561"]
[BlackElo "3034"]
[TimeControl "180+1"]
[EndTime "9:14:19 PST"]
[Termination "FunnyDuck66 won by checkmate"]

1. d4 {[%clk 0:03:00.9]} 1... Nf6 {[%clk 0:03:00]} 2. Nf3 {[%clk 0:03:01]} 2...
e6 {[%clk 0:03:00.2]} 3. Bg5 {[%clk 0:03:01.3]} 3... Be7 {[%clk 0:02:59.2]} 4.
Nbd2 {[%clk 0:03:01]} 4... d6 {[%clk 0:02:59.2]} 5. c3 {[%clk 0:03:01]} 5...
Nbd7 {[%clk 0:02:59.8]} 6. e4 {[%clk 0:03:01.1]} 6... O-O {[%clk 0:03:00.4]} 7.
Bd3 {[%clk 0:03:01.1]} 7... b6 {[%clk 0:03:01]} 8. O-O {[%clk 0:03:01.2]} 8...
Bb7 {[%clk 0:03:00.8]} 9. Qc2 {[%clk 0:03:01.3]} 9... e5 {[%clk 0:03:00.6]} 10.
dxe5 {[%clk 0:03:01]} 10... dxe5 {[%clk 0:03:01]} 11. Nc4 {[%clk 0:03:00.9]}
11... Nh5 {[%clk 0:03:01.1]} 12. Bxe7 {[%clk 0:02:59.5]} 12... Qxe7 {[%clk
0:03:02]} 13. Rfe1 {[%clk 0:02:56.2]} 13... Nf4 {[%clk 0:03:02]} 14. Bf1 {[%clk
0:02:56.1]} 14... Rfe8 {[%clk 0:02:59.7]} 15. b4 {[%clk 0:02:52.4]} 15... Rad8
{[%clk 0:02:59.4]} 16. Ne3 {[%clk 0:02:51.3]} 16... Nf6 {[%clk 0:02:55.1]} 17.
Nc4 {[%clk 0:02:25.8]} 17... Ng6 {[%clk 0:02:53.7]} 18. g3 {[%clk 0:02:21.8]}
18... h6 {[%clk 0:02:53.3]} 19. Bd3 {[%clk 0:02:18.3]} 19... Qe6 {[%clk
0:02:52.4]} 20. Rad1 {[%clk 0:02:11.8]} 20... Rd7 {[%clk 0:02:23.6]} 21. Ne3
{[%clk 0:01:29.9]} 21... Rxd3 {[%clk 0:02:18.6]} 22. Qxd3 {[%clk 0:01:30]} 22...
Bxe4 {[%clk 0:02:16.6]} 23. Qe2 {[%clk 0:01:30.3]} 23... Bb7 {[%clk 0:02:12.4]}
24. Nd2 {[%clk 0:01:25.8]} 24... Nh7 {[%clk 0:02:04.6]} 25. Qc4 {[%clk 0:01:13]}
25... Qh3 {[%clk 0:01:58.5]} 26. Qg4 {[%clk 0:01:11.6]} 26... Ng5 {[%clk
0:01:51.3]} 27. Qxh3 {[%clk 0:01:04.1]} 27... Nxh3+ {[%clk 0:01:52.2]} 28. Kf1
{[%clk 0:01:04.2]} 28... Nf8 {[%clk 0:01:52.8]} 29. f3 {[%clk 0:01:01.9]} 29...
Ng5 {[%clk 0:01:50.8]} 30. Kf2 {[%clk 0:00:59.3]} 30... f6 {[%clk 0:01:49.9]}
31. h4 {[%clk 0:00:59.2]} 31... Nf7 {[%clk 0:01:49.7]} 32. Ne4 {[%clk
0:00:59.8]} 32... Bc6 {[%clk 0:01:43.8]} 33. Nf5 {[%clk 0:00:59.4]} 33... Ne6
{[%clk 0:01:41.5]} 34. Rd2 {[%clk 0:00:52.7]} 34... Kf8 {[%clk 0:01:39]} 35.
Red1 {[%clk 0:00:52.4]} 35... g6 {[%clk 0:01:35.4]} 36. Ne3 {[%clk 0:00:31.1]}
36... f5 {[%clk 0:01:30.5]} 37. Nf6 {[%clk 0:00:31.3]} 37... Re7 {[%clk
0:01:23.2]} 38. Nfd5 {[%clk 0:00:19.8]} 38... Re8 {[%clk 0:01:22.2]} 39. Nc4
{[%clk 0:00:19.2]} 39... Bb5 {[%clk 0:00:59.1]} 40. Nb2 {[%clk 0:00:15]} 40...
Kg7 {[%clk 0:00:52.2]} 41. a4 {[%clk 0:00:14.8]} 41... Bc6 {[%clk 0:00:52.8]}
42. b5 {[%clk 0:00:15.4]} 42... Bb7 {[%clk 0:00:53.4]} 43. Nc4 {[%clk 0:00:14]}
43... c6 {[%clk 0:00:53]} 44. Nb4 {[%clk 0:00:13]} 44... cxb5 {[%clk 0:00:52.1]}
45. axb5 {[%clk 0:00:13.9]} 45... Nc5 {[%clk 0:00:48.3]} 46. Nd6 {[%clk
0:00:11.5]} 46... Nxd6 {[%clk 0:00:48.3]} 47. Rxd6 {[%clk 0:00:12.4]} 47... e4
{[%clk 0:00:49.2]} 48. f4 {[%clk 0:00:09.5]} 48... h5 {[%clk 0:00:44.2]} 49. Ke3
{[%clk 0:00:09.9]} 49... Kh6 {[%clk 0:00:41.9]} 50. Nc6 {[%clk 0:00:09.4]} 50...
Na4 {[%clk 0:00:04.3]} 51. Ne5 {[%clk 0:00:08.2]} 51... Rg8 {[%clk 0:00:04.9]}
52. Rd7 {[%clk 0:00:07.3]} 52... Nxc3 {[%clk 0:00:04.2]} 53. Nf7+ {[%clk
0:00:06.2]} 53... Kg7 {[%clk 0:00:03.5]} 54. Ng5+ {[%clk 0:00:06.4]} 54... Kf8
{[%clk 0:00:02.5]} 55. Rd8+ {[%clk 0:00:07.1]} 55... Kg7 {[%clk 0:00:01.4]} 56.
R1d7+ {[%clk 0:00:07.8]} 56... Kf6 {[%clk 0:00:01.8]} 57. Rf7# {[%clk
0:00:08.4]} 1-0

[Event "Early-Titled-Tuesday-Blitz-November-28-2023"]
[Site "Chess.com"]
[Date "2023.11.28"]
[Round "6"]
[White "Kaua18"]
[Black "BardArtem"]
[Result "0-1"]
[WhiteElo "2548"]
[BlackElo "2763"]
[TimeControl "180+1"]
[EndTime "9:14:20 PST"]
[Termination "BardArtem won by resignation"]

1. e4 {[%clk 0:03:00.9]} 1... c6 {[%clk 0:02:57]} 2. Nc3 {[%clk 0:02:57.6]} 2...
d5 {[%clk 0:02:57.9]} 3. Nf3 {[%clk 0:02:56.9]} 3... Bg4 {[%clk 0:02:54.8]} 4.
h3 {[%clk 0:02:54.9]} 4... Bxf3 {[%clk 0:02:54.8]} 5. Qxf3 {[%clk 0:02:55.8]}
5... e6 {[%clk 0:02:55.1]} 6. Be2 {[%clk 0:02:53]} 6... Nf6 {[%clk 0:02:54.8]}
7. O-O {[%clk 0:02:53]} 7... dxe4 {[%clk 0:02:37.6]} 8. Nxe4 {[%clk 0:02:48.2]}
8... Nxe4 {[%clk 0:02:38.5]} 9. Qxe4 {[%clk 0:02:49.1]} 9... Qd5 {[%clk
0:02:39.4]} 10. Qxd5 {[%clk 0:02:45.7]} 10... cxd5 {[%clk 0:02:40.3]} 11. d4
{[%clk 0:02:45.7]} 11... Nc6 {[%clk 0:02:37.5]} 12. c3 {[%clk 0:02:42.3]} 12...
Bd6 {[%clk 0:02:35.3]} 13. Bd3 {[%clk 0:02:29.4]} 13... Kd7 {[%clk 0:02:27.9]}
14. Bd2 {[%clk 0:02:26.6]} 14... a6 {[%clk 0:02:15.8]} 15. Rae1 {[%clk
0:02:23.1]} 15... b5 {[%clk 0:02:12.3]} 16. f4 {[%clk 0:02:16.5]} 16... f5
{[%clk 0:02:01.2]} 17. g4 {[%clk 0:02:11.2]} 17... g6 {[%clk 0:01:54.4]} 18. Kg2
{[%clk 0:02:05.3]} 18... h5 {[%clk 0:01:49.4]} 19. gxf5 {[%clk 0:02:00.8]} 19...
gxf5 {[%clk 0:01:50.3]} 20. Kf3 {[%clk 0:02:00.1]} 20... Ne7 {[%clk 0:01:49.8]}
21. Rg1 {[%clk 0:02:00]} 21... Rh7 {[%clk 0:01:48.8]} 22. Rg5 {[%clk 0:01:56.4]}
22... Ng8 {[%clk 0:01:31]} 23. Reg1 {[%clk 0:01:53.9]} 23... Nf6 {[%clk
0:01:29.3]} 24. Rg7+ {[%clk 0:01:54.2]} 24... Rxg7 {[%clk 0:01:29.3]} 25. Rxg7+
{[%clk 0:01:55.1]} 25... Be7 {[%clk 0:01:29.8]} 26. Be1 {[%clk 0:01:50.4]} 26...
Rg8 {[%clk 0:01:28.7]} 27. Rg5 {[%clk 0:01:37.5]} 27... Ke8 {[%clk 0:01:19.1]}
28. a4 {[%clk 0:01:28.3]} 28... bxa4 {[%clk 0:01:17.2]} 29. Bxa6 {[%clk
0:01:27.5]} 29... a3 {[%clk 0:01:17]} 30. bxa3 {[%clk 0:01:25.5]} 30... Bxa3
{[%clk 0:01:15.8]} 31. Rxg8+ {[%clk 0:01:23.5]} 31... Nxg8 {[%clk 0:01:16.7]}
32. Bc8 {[%clk 0:01:00.8]} 32... Kf7 {[%clk 0:01:16]} 33. Bd2 {[%clk 0:00:50.8]}
33... Nf6 {[%clk 0:01:10.9]} 34. Be1 {[%clk 0:00:42.4]} 34... Ne4 {[%clk
0:01:08.8]} 35. Ba6 {[%clk 0:00:28]} 35... Bb2 {[%clk 0:01:06.3]} 36. c4 {[%clk
0:00:15.8]} 36... dxc4 {[%clk 0:00:54.4]} 37. Bxc4 {[%clk 0:00:16.3]} 37... Bxd4
{[%clk 0:00:54.8]} 38. Ba2 {[%clk 0:00:12.9]} 38... Bc3 {[%clk 0:00:54.3]} 39.
Bf2 {[%clk 0:00:09.8]} 39... Bf6 {[%clk 0:00:50]} 40. Be3 {[%clk 0:00:09.9]}
40... Nd6 {[%clk 0:00:48.2]} 41. Bb3 {[%clk 0:00:09.6]} 41... Bd8 {[%clk
0:00:47.6]} 42. Bc5 {[%clk 0:00:08.5]} 42... Nc8 {[%clk 0:00:45.8]} 43. Be3
{[%clk 0:00:08.4]} 43... Bb6 {[%clk 0:00:46]} 44. Bd2 {[%clk 0:00:08]} 44... Nd6
{[%clk 0:00:45.3]} 45. Bc2 {[%clk 0:00:08]} 45... Nc4 {[%clk 0:00:43.6]} 46. Bc1
{[%clk 0:00:08.5]} 46... Bc5 {[%clk 0:00:43.8]} 47. Bd3 {[%clk 0:00:08.4]} 47...
Nb6 {[%clk 0:00:41.2]} 48. Kg3 {[%clk 0:00:07.4]} 48... Nd5 {[%clk 0:00:39.9]}
49. Bd2 {[%clk 0:00:07]} 49... Be3 {[%clk 0:00:36.8]} 50. Bxe3 {[%clk
0:00:06.3]} 50... Nxe3 {[%clk 0:00:37.7]} 51. Be2 {[%clk 0:00:04.4]} 51... Kg6
{[%clk 0:00:36.7]} 52. Kh4 {[%clk 0:00:04.4]} 52... Nd5 {[%clk 0:00:30.5]} 53.
Bxh5+ {[%clk 0:00:03.7]} 53... Kh6 {[%clk 0:00:31.2]} 54. Bf7 {[%clk 0:00:03.4]}
54... Nxf4 {[%clk 0:00:31.3]} 55. Kg3 {[%clk 0:00:04.1]} 55... e5 {[%clk
0:00:28.1]} 56. h4 {[%clk 0:00:02.3]} 56... Kg7 {[%clk 0:00:26.8]} 57. Be8
{[%clk 0:00:02.6]} 57... Kf6 {[%clk 0:00:26.8]} 58. Bd7 {[%clk 0:00:03.1]} 58...
Nh5+ {[%clk 0:00:23.7]} 59. Kf3 {[%clk 0:00:03.4]} 59... e4+ {[%clk 0:00:24]}
60. Ke3 {[%clk 0:00:03.9]} 60... Ke5 {[%clk 0:00:24.2]} 61. Be8 {[%clk
0:00:04.2]} 61... Nf6 {[%clk 0:00:24.3]} 62. Bg6 {[%clk 0:00:03.3]} 62... f4+
{[%clk 0:00:24.8]} 63. Ke2 {[%clk 0:00:03.6]} 63... f3+ {[%clk 0:00:22.6]} 64.
Ke3 {[%clk 0:00:02.4]} 64... Ng4+ {[%clk 0:00:21.3]} 65. Kd2 {[%clk 0:00:02.7]}
65... e3+ {[%clk 0:00:21.9]} 66. Ke1 {[%clk 0:00:02.6]} 66... f2+ {[%clk
0:00:20.9]} 67. Ke2 {[%clk 0:00:01.4]} 67... Nh2 {[%clk 0:00:21]} 0-1

[Event "Early-Titled-Tuesday-Blitz-November-28-2023"]
[Site "Chess.com"]
[Date "2023.11.28"]
[Round "6"]
[White "vovachesss"]
[Black "wadsy27"]
[Result "1/2-1/2"]
[WhiteElo "2857"]
[BlackElo "2647"]
[TimeControl "180+1"]
[EndTime "9:14:23 PST"]
[Termination "Game drawn by agreement"]

1. e4 {[%clk 0:03:00.9]} 1... e6 {[%clk 0:02:54.6]} 2. d4 {[%clk 0:03:00.1]}
2... d5 {[%clk 0:02:55.1]} 3. Nc3 {[%clk 0:03:01]} 3... Nc6 {[%clk 0:02:54.9]}
4. Bb5 {[%clk 0:02:55]} 4... Ne7 {[%clk 0:02:36.9]} 5. Nf3 {[%clk 0:02:51.5]}
5... a6 {[%clk 0:02:33.3]} 6. Bd3 {[%clk 0:02:51.3]} 6... b5 {[%clk 0:02:26.9]}
7. O-O {[%clk 0:02:41.4]} 7... Bb7 {[%clk 0:02:25.7]} 8. Re1 {[%clk 0:02:33.4]}
8... Nb4 {[%clk 0:02:16.5]} 9. Bf1 {[%clk 0:02:33.4]} 9... h6 {[%clk 0:01:50.3]}
10. Ne5 {[%clk 0:02:25.7]} 10... Nec6 {[%clk 0:01:43.9]} 11. a3 {[%clk
0:01:00.4]} 11... Nxe5 {[%clk 0:01:42.5]} 12. axb4 {[%clk 0:00:55.9]} 12... Nc4
{[%clk 0:01:26.8]} 13. exd5 {[%clk 0:00:45.9]} 13... Bxb4 {[%clk 0:01:26.5]} 14.
dxe6 {[%clk 0:00:36.7]} 14... O-O {[%clk 0:01:26.4]} 15. Qg4 {[%clk 0:00:15.2]}
15... fxe6 {[%clk 0:01:18.8]} 16. Qxe6+ {[%clk 0:00:09.9]} 16... Kh8 {[%clk
0:01:16.6]} 17. Bd3 {[%clk 0:00:08.3]} 17... Qxd4 {[%clk 0:01:02]} 18. Be3
{[%clk 0:00:08.2]} 18... Nxe3 {[%clk 0:00:59]} 19. Rxe3 {[%clk 0:00:09.1]} 19...
Qf6 {[%clk 0:00:28.5]} 20. Qxf6 {[%clk 0:00:07.8]} 20... Rxf6 {[%clk 0:00:29.3]}
21. Be4 {[%clk 0:00:04.5]} 21... Bxc3 {[%clk 0:00:21]} 22. Bxb7 {[%clk
0:00:03.6]} 22... Bxb2 {[%clk 0:00:21.4]} 23. Rb1 {[%clk 0:00:02.4]} 23... Rb8
{[%clk 0:00:21.3]} 24. Be4 {[%clk 0:00:01.4]} 24... Bd4 {[%clk 0:00:19.8]} 25.
Rf3 {[%clk 0:00:01.4]} 25... Rxf3 {[%clk 0:00:17.7]} 26. Bxf3 {[%clk 0:00:02.3]}
26... a5 {[%clk 0:00:17.5]} 27. Bc6 {[%clk 0:00:03]} 27... Rb6 {[%clk
0:00:11.6]} 28. Bd5 {[%clk 0:00:03.5]} 28... a4 {[%clk 0:00:11]} 29. Rd1 {[%clk
0:00:03.8]} 29... c5 {[%clk 0:00:10.7]} 30. Kf1 {[%clk 0:00:03.4]} 30... g5
{[%clk 0:00:10.1]} 31. Re1 {[%clk 0:00:03.7]} 31... b4 {[%clk 0:00:09.6]} 32.
Re7 {[%clk 0:00:03.2]} 32... b3 {[%clk 0:00:09.2]} 33. cxb3 {[%clk 0:00:02.9]}
33... axb3 {[%clk 0:00:09.6]} 34. Be4 {[%clk 0:00:03.4]} 34... b2 {[%clk
0:00:09.5]} 35. Bb1 {[%clk 0:00:04]} 35... Ra6 {[%clk 0:00:09.8]} 36. Re1 {[%clk
0:00:04]} 36... Kg7 {[%clk 0:00:09.9]} 37. Ke2 {[%clk 0:00:04.5]} 37... Kf6
{[%clk 0:00:09.8]} 38. f3 {[%clk 0:00:05.2]} 38... Re6+ {[%clk 0:00:09.1]} 39.
Kd1 {[%clk 0:00:04.8]} 39... Rxe1+ {[%clk 0:00:09.2]} 40. Kxe1 {[%clk
0:00:05.7]} 40... Bg1 {[%clk 0:00:08.9]} 41. h3 {[%clk 0:00:04.9]} 41... Ke5
{[%clk 0:00:09.1]} 42. g3 {[%clk 0:00:03.9]} 42... Kd4 {[%clk 0:00:07]} 43. Kd2
{[%clk 0:00:03.4]} 43... Be3+ {[%clk 0:00:07.2]} 44. Kc2 {[%clk 0:00:03]} 44...
Bc1 {[%clk 0:00:07.4]} 45. Ba2 {[%clk 0:00:02.7]} 45... Ke3 {[%clk 0:00:07.4]}
46. f4 {[%clk 0:00:03]} 46... gxf4 {[%clk 0:00:05.5]} 47. gxf4 {[%clk
0:00:03.9]} 47... Kxf4 {[%clk 0:00:05.9]} 48. Be6 {[%clk 0:00:04.5]} 48... Ke5
{[%clk 0:00:02.8]} 49. Bc8 {[%clk 0:00:04.7]} 49... Kd4 {[%clk 0:00:03.4]} 50.
Bd7 {[%clk 0:00:04.9]} 50... Kc4 {[%clk 0:00:03.7]} 51. Be6+ {[%clk 0:00:05.2]}
51... Kb4 {[%clk 0:00:04.1]} 52. Bd7 {[%clk 0:00:06.1]} 52... Ka3 {[%clk
0:00:04.4]} 53. Be6 {[%clk 0:00:06.3]} 53... Bf4 {[%clk 0:00:03.8]} 54. Bd5
{[%clk 0:00:06.2]} 54... Be5 {[%clk 0:00:04.1]} 55. Be6 {[%clk 0:00:06.7]} 55...
Kb4 {[%clk 0:00:04.3]} 56. Bd7 {[%clk 0:00:06.5]} 56... Kc4 {[%clk 0:00:04]} 57.
Be6+ {[%clk 0:00:07]} 57... Kb4 {[%clk 0:00:04.4]} 58. Bd7 {[%clk 0:00:07.9]}
58... c4 {[%clk 0:00:04.9]} 59. Be6 {[%clk 0:00:08.2]} 59... Kc5 {[%clk
0:00:05.3]} 60. Bc8 {[%clk 0:00:08]} 60... Bc3 {[%clk 0:00:05.6]} 61. Be6 {[%clk
0:00:08.5]} 61... Kd4 {[%clk 0:00:06]} 62. Bf5 {[%clk 0:00:08.8]} 62... Ke5
{[%clk 0:00:06.4]} 63. Bh7 {[%clk 0:00:08.6]} 63... Bd4 {[%clk 0:00:06.8]} 64.
Bg8 {[%clk 0:00:09]} 64... Kf4 {[%clk 0:00:07.2]} 65. Bxc4 {[%clk 0:00:09.1]}
65... Kg3 {[%clk 0:00:07.1]} 66. Be6 {[%clk 0:00:09.6]} 66... h5 {[%clk
0:00:06.6]} 67. Kb1 {[%clk 0:00:08.2]} 1/2-1/2

[Event "Early-Titled-Tuesday-Blitz-November-28-2023"]
[Site "Chess.com"]
[Date "2023.11.28"]
[Round "6"]
[White "MikeSailer"]
[Black "VitaliyChayka"]
[Result "0-1"]
[WhiteElo "2061"]
[BlackElo "2423"]
[TimeControl "180+1"]
[EndTime "9:14:24 PST"]
[Termination "VitaliyChayka won by checkmate"]

1. d4 {[%clk 0:03:00]} 1... g6 {[%clk 0:02:58.6]} 2. e4 {[%clk 0:02:50.6]} 2...
d6 {[%clk 0:02:57.2]} 3. Nc3 {[%clk 0:02:40.5]} 3... c6 {[%clk 0:02:57]} 4. a4
{[%clk 0:02:34.3]} 4... a5 {[%clk 0:02:53.6]} 5. Be3 {[%clk 0:02:33.5]} 5... Na6
{[%clk 0:02:52.1]} 6. h3 {[%clk 0:02:21.4]} 6... Nf6 {[%clk 0:02:41.5]} 7. Nf3
{[%clk 0:02:21]} 7... Nb4 {[%clk 0:02:40]} 8. g4 {[%clk 0:02:04.1]} 8... h5
{[%clk 0:02:36.6]} 9. g5 {[%clk 0:02:03.8]} 9... Nd7 {[%clk 0:02:36.5]} 10. Bg2
{[%clk 0:01:59.1]} 10... Bg7 {[%clk 0:02:35.7]} 11. O-O {[%clk 0:01:56.2]} 11...
O-O {[%clk 0:02:34.7]} 12. Re1 {[%clk 0:01:55.5]} 12... Qc7 {[%clk 0:02:28.1]}
13. Nb1 {[%clk 0:01:52.9]} 13... e5 {[%clk 0:02:21.5]} 14. c3 {[%clk 0:01:52.2]}
14... Na6 {[%clk 0:02:21]} 15. Nbd2 {[%clk 0:01:49.2]} 15... Re8 {[%clk
0:02:15.2]} 16. Nh2 {[%clk 0:01:33.6]} 16... Nf8 {[%clk 0:02:09.3]} 17. f4
{[%clk 0:01:18.9]} 17... Be6 {[%clk 0:01:42.5]} 18. Rf1 {[%clk 0:01:14.3]} 18...
Qd7 {[%clk 0:01:29.9]} 19. Qf3 {[%clk 0:01:13.6]} 19... exf4 {[%clk 0:01:25.7]}
20. Bxf4 {[%clk 0:01:10.6]} 20... d5 {[%clk 0:01:16.2]} 21. Qg3 {[%clk
0:00:55.4]} 21... dxe4 {[%clk 0:01:14.3]} 22. Nxe4 {[%clk 0:00:54.1]} 22... Nh7
{[%clk 0:01:04.9]} 23. Nd6 {[%clk 0:00:44.7]} 23... Rf8 {[%clk 0:01:03]} 24. Be5
{[%clk 0:00:40.3]} 24... Nc7 {[%clk 0:00:56.2]} 25. Rae1 {[%clk 0:00:37.3]}
25... Nd5 {[%clk 0:00:54.3]} 26. Bxg7 {[%clk 0:00:34.7]} 26... Kxg7 {[%clk
0:00:53.4]} 27. Qe5+ {[%clk 0:00:35.3]} 27... Kg8 {[%clk 0:00:53.2]} 28. Ne4
{[%clk 0:00:34.7]} 28... Rae8 {[%clk 0:00:49.8]} 29. Qg3 {[%clk 0:00:24.5]}
29... Bf5 {[%clk 0:00:46.7]} 30. Nc5 {[%clk 0:00:20.3]} 30... Qc8 {[%clk
0:00:45.3]} 31. Nf3 {[%clk 0:00:19.6]} 31... b6 {[%clk 0:00:40.2]} 32. Nb3
{[%clk 0:00:19.6]} 32... Bd3 {[%clk 0:00:37]} 33. Rf2 {[%clk 0:00:09.6]} 33...
Ne3 {[%clk 0:00:35.2]} 34. Ne5 {[%clk 0:00:08.4]} 34... Nxg2 {[%clk 0:00:31.6]}
35. Kxg2 {[%clk 0:00:06.6]} 35... Bf5 {[%clk 0:00:29.6]} 36. Nd2 {[%clk
0:00:06.1]} 36... Re6 {[%clk 0:00:27]} 37. Ne4 {[%clk 0:00:05.8]} 37... Rfe8
{[%clk 0:00:22.6]} 38. Rxf5 {[%clk 0:00:05.4]} 38... gxf5 {[%clk 0:00:20.9]} 39.
Nf6+ {[%clk 0:00:05.8]} 39... Kg7 {[%clk 0:00:16.7]} 40. Nxe8+ {[%clk
0:00:05.9]} 40... Qxe8 {[%clk 0:00:15.7]} 41. Qf4 {[%clk 0:00:06]} 41... c5
{[%clk 0:00:13.9]} 42. Qxf5 {[%clk 0:00:06.2]} 42... cxd4 {[%clk 0:00:12.5]} 43.
cxd4 {[%clk 0:00:06.6]} 43... Nf8 {[%clk 0:00:12.7]} 44. h4 {[%clk 0:00:05.4]}
44... Ng6 {[%clk 0:00:12.5]} 45. Nf3 {[%clk 0:00:05.5]} 45... Rxe1 {[%clk
0:00:11.3]} 46. Qf6+ {[%clk 0:00:06.1]} 46... Kg8 {[%clk 0:00:08.8]} 47. Nxe1
{[%clk 0:00:06]} 47... Qxe1 {[%clk 0:00:07.2]} 48. Qd8+ {[%clk 0:00:06.5]} 48...
Kh7 {[%clk 0:00:05.8]} 49. Qf6 {[%clk 0:00:06.3]} 49... Qe6 {[%clk 0:00:05.6]}
50. Qd8 {[%clk 0:00:05.9]} 50... Qe4+ {[%clk 0:00:04.9]} 51. Kg1 {[%clk
0:00:06.1]} 51... Qg4+ {[%clk 0:00:04.7]} 52. Kf1 {[%clk 0:00:06.3]} 52... Qf4+
{[%clk 0:00:04.8]} 53. Ke2 {[%clk 0:00:06.1]} 53... Qe4+ {[%clk 0:00:04.7]} 54.
Kd1 {[%clk 0:00:06.4]} 54... Nf4 {[%clk 0:00:04.9]} 55. Qf6 {[%clk 0:00:05.4]}
55... Qe2+ {[%clk 0:00:04.6]} 56. Kc1 {[%clk 0:00:06]} 56... Nd3+ {[%clk
0:00:05.1]} 57. Kb1 {[%clk 0:00:03.9]} 57... Qxb2# {[%clk 0:00:05.2]} 0-1

[Event "Early-Titled-Tuesday-Blitz-November-28-2023"]
[Site "Chess.com"]
[Date "2023.11.28"]
[Round "6"]
[White "alvarorodriguezavila"]
[Black "Kotofeyca"]
[Result "1/2-1/2"]
[WhiteElo "2232"]
[BlackElo "2442"]
[TimeControl "180+1"]
[EndTime "9:14:24 PST"]
[Termination "Game drawn - insufficient material"]

1. e4 {[%clk 0:02:42.9]} 1... c5 {[%clk 0:02:54.8]} 2. Nf3 {[%clk 0:02:42.3]}
2... d6 {[%clk 0:02:55.2]} 3. d4 {[%clk 0:02:42.7]} 3... cxd4 {[%clk 0:02:56.1]}
4. Nxd4 {[%clk 0:02:43.6]} 4... Nf6 {[%clk 0:02:56.4]} 5. Nc3 {[%clk 0:02:44.3]}
5... a6 {[%clk 0:02:57]} 6. Bg5 {[%clk 0:02:44.8]} 6... e6 {[%clk 0:02:57.3]} 7.
f4 {[%clk 0:02:45.1]} 7... Qb6 {[%clk 0:02:57.9]} 8. Qd2 {[%clk 0:02:33.5]} 8...
Nc6 {[%clk 0:02:57.2]} 9. O-O-O {[%clk 0:02:26.1]} 9... Bd7 {[%clk 0:02:55.1]}
10. f5 {[%clk 0:02:16.4]} 10... Qxd4 {[%clk 0:02:49.9]} 11. Qxd4 {[%clk
0:02:16.1]} 11... Nxd4 {[%clk 0:02:50.8]} 12. Rxd4 {[%clk 0:02:17]} 12... Be7
{[%clk 0:02:25.9]} 13. fxe6 {[%clk 0:02:14.2]} 13... fxe6 {[%clk 0:02:25.4]} 14.
Be2 {[%clk 0:01:56.6]} 14... Bc6 {[%clk 0:02:10]} 15. Bc4 {[%clk 0:01:41.2]}
15... e5 {[%clk 0:02:05.1]} 16. Bxf6 {[%clk 0:01:20.8]} 16... exd4 {[%clk
0:01:59.5]} 17. Bxd4 {[%clk 0:01:21.7]} 17... Bf6 {[%clk 0:01:52.7]} 18. Bxf6
{[%clk 0:00:59.1]} 18... gxf6 {[%clk 0:01:53.6]} 19. Rf1 {[%clk 0:00:59.3]}
19... Ke7 {[%clk 0:01:51.6]} 20. g3 {[%clk 0:00:59.8]} 20... Rac8 {[%clk
0:01:34.4]} 21. Bd3 {[%clk 0:00:59.2]} 21... Rhg8 {[%clk 0:01:27.7]} 22. Ne2
{[%clk 0:00:59.3]} 22... Rg5 {[%clk 0:01:22.3]} 23. Kd2 {[%clk 0:00:56.6]} 23...
Re5 {[%clk 0:01:20.2]} 24. Rf4 {[%clk 0:00:54.3]} 24... Kf7 {[%clk 0:00:58.7]}
25. Nd4 {[%clk 0:00:54]} 25... d5 {[%clk 0:00:52.5]} 26. Nf3 {[%clk 0:00:50.7]}
26... Rh5 {[%clk 0:00:46.5]} 27. e5 {[%clk 0:00:51.1]} 27... Rh6 {[%clk
0:00:40.6]} 28. exf6 {[%clk 0:00:30.7]} 28... Rxf6 {[%clk 0:00:38.4]} 29. Ng5+
{[%clk 0:00:31.2]} 29... Kg7 {[%clk 0:00:33.7]} 30. Rxf6 {[%clk 0:00:31.1]}
30... Kxf6 {[%clk 0:00:34.6]} 31. Nxh7+ {[%clk 0:00:31.7]} 31... Ke5 {[%clk
0:00:30.5]} 32. Ng5 {[%clk 0:00:31]} 32... Rf8 {[%clk 0:00:25.9]} 33. h4 {[%clk
0:00:23.7]} 33... Rf2+ {[%clk 0:00:23.5]} 34. Ke3 {[%clk 0:00:22.8]} 34... Rg2
{[%clk 0:00:20.6]} 35. Nf3+ {[%clk 0:00:18.8]} 35... Kf6 {[%clk 0:00:17.1]} 36.
Kf4 {[%clk 0:00:19.2]} 36... Bb5 {[%clk 0:00:13.6]} 37. Bxb5 {[%clk 0:00:12.4]}
37... axb5 {[%clk 0:00:14.5]} 38. Nd4 {[%clk 0:00:12.8]} 38... Rf2+ {[%clk
0:00:14.5]} 39. Ke3 {[%clk 0:00:12.3]} 39... Rg2 {[%clk 0:00:14.6]} 40. Kf3
{[%clk 0:00:11.1]} 40... Rd2 {[%clk 0:00:13.9]} 41. Ke3 {[%clk 0:00:08.6]} 41...
Rg2 {[%clk 0:00:13.7]} 42. Ne2 {[%clk 0:00:09.2]} 42... Ke5 {[%clk 0:00:11.6]}
43. Kf3 {[%clk 0:00:09.8]} 43... Rh2 {[%clk 0:00:11.6]} 44. c3 {[%clk
0:00:08.6]} 44... b4 {[%clk 0:00:10.5]} 45. cxb4 {[%clk 0:00:08.5]} 45... d4
{[%clk 0:00:10.9]} 46. Nf4 {[%clk 0:00:03.2]} 46... Rxb2 {[%clk 0:00:08.9]} 47.
h5 {[%clk 0:00:03.5]} 47... Rxa2 {[%clk 0:00:08.2]} 48. h6 {[%clk 0:00:03.6]}
48... Rh2 {[%clk 0:00:08.1]} 49. Ng6+ {[%clk 0:00:01.9]} 49... Kd6 {[%clk
0:00:05.3]} 50. Nh4 {[%clk 0:00:02.8]} 50... Ra2 {[%clk 0:00:03.2]} 51. h7
{[%clk 0:00:02.5]} 51... Ra8 {[%clk 0:00:04]} 52. Ng6 {[%clk 0:00:03]} 52... Kd5
{[%clk 0:00:03.9]} 53. h8=Q {[%clk 0:00:03.1]} 53... Rxh8 {[%clk 0:00:04.5]} 54.
Nxh8 {[%clk 0:00:04]} 54... Kc4 {[%clk 0:00:04.7]} 55. Ke2 {[%clk 0:00:04.6]}
55... Kxb4 {[%clk 0:00:04.6]} 56. Kd3 {[%clk 0:00:04.7]} 56... Ka3 {[%clk
0:00:03.9]} 57. g4 {[%clk 0:00:03.4]} 57... b5 {[%clk 0:00:04.8]} 58. g5 {[%clk
0:00:03.9]} 58... b4 {[%clk 0:00:05.7]} 59. g6 {[%clk 0:00:04.6]} 59... b3
{[%clk 0:00:06.6]} 60. g7 {[%clk 0:00:05.3]} 60... b2 {[%clk 0:00:07.5]} 61.
g8=Q {[%clk 0:00:05]} 61... b1=Q+ {[%clk 0:00:07.9]} 62. Kxd4 {[%clk 0:00:05.1]}
62... Qb2+ {[%clk 0:00:08.3]} 63. Ke3 {[%clk 0:00:05]} 63... Qb3+ {[%clk
0:00:08.1]} 64. Qxb3+ {[%clk 0:00:03.8]} 64... Kxb3 {[%clk 0:00:09]} 1/2-1/2